bitfinex/quotes_ETHUSD_20240722
["timestamp","ask_amount","ask_price","bid_price","bid_amount"]
[1721661119901,0.04450585,3453.0,3452.4,1.194657]
[1721661120102,2.94055585,3453.0,3452.4,1.194657]
[1721661120437,0.04450585,3453.0,3452.2,3.0]
[1721661120751,0.04450585,3453.0,3452.5,2.8964]
[1721661120931,2.8959,3453.2,3452.5,2.8964]
[1721661121109,0.04303357,3452.9,3452.5,2.89639]
[1721661121312,2.89594,3453.1,3452.3,2.89656]
[1721661121559,0.04300385,3452.8,3452.4,1.139656]
[1721661121748,0.61559268,3453.7,3452.4,1.139656]
[1721661121919,0.04303417,3452.7,3452.4,1.139656]
[1721661122136,2.89582,3453.3,3452.4,1.139656]
[1721661122345,0.04303447,3452.6,3452.5,2.89645]
[1721661122527,2.89591,3453.2,3452.5,3.5897216]
[1721661122727,2.89582,3453.3,3452.5,3.5897216]
[1721661122728,0.0430061,3452.6,3452.5,3.5897216]
[1721661122938,2.89579,3453.3,3452.5,3.5897216]
[1721661122939,2.89587,3453.2,3452.5,3.5897216]
[1721661123156,0.04301556,3452.6,3452.5,0.6932716]
[1721661123460,2.89586,3453.2,3452.5,2.89645]
[1721661123672,0.042995,3452.6,3452.5,5.7929]
[1721661123821,0.0235,3453.7,3452.8,2.89615]
[1721661124025,2.89571,3453.4,3452.7,2.89623]
[1721661124219,2.93858818,3453.6,3452.9,2.89605]
[1721661124485,0.04306452,3453.3,3452.9,0.289605]
[1721661124628,0.0235,3453.7,3453.2,2.89585]
[1721661125129,0.0235,3453.7,3453.3,0.05791085]
[1721661125436,0.0235,3453.7,3453.6,2.89552]
[1721661125652,0.0235,3453.7,3453.6,6.34104]
[1721661127538,0.0235,3453.7,3453.6,3.44552]
[1721661127722,0.0235,3453.7,3453.6,3.790072]
[1721661128564,0.0235,3453.7,3453.6,6.685592]
[1721661128869,0.0235,3453.7,3453.6,3.790072]
[1721661129763,0.0235,3453.7,3453.6,6.685592]
[1721661130733,0.0235,3453.7,3453.6,9.685592]
[1721661131893,0.0235,3453.7,3453.6,3.894552]
[1721661132185,0.06262779,3453.7,3453.6,6.790072]
[1721661132346,0.0235,3453.7,3453.6,6.790072]
[1721661132543,0.0235,3453.7,3453.6,9.685592]
[1721661136103,0.0235,3453.7,3453.6,6.790072]
[1721661136423,0.0235,3453.7,3453.6,3.0]
[1721661136698,0.0235,3453.7,3452.6,10.20632]
[1721661136699,2.89557,3453.6,3452.6,10.20632]
[1721661136998,2.93301485,3453.5,3452.6,10.20631]
[1721661137160,2.89561,3453.5,3452.8,2.89613]
[1721661137362,2.89561,3453.5,3452.7,1.020631]
[1721661137363,0.03741463,3453.4,3452.9,2.8961]
[1721661137595,0.03741463,3453.4,3452.8,2.89611]
[1721661138006,0.03741463,3453.4,3452.7,1.020631]
[1721661138007,2.93311463,3453.4,3452.7,1.020631]
[1721661138209,2.93311463,3453.4,3452.8,1.1226951]
[1721661138586,0.03741463,3453.4,3452.8,1.1226951]
[1721661138811,2.89554,3453.6,3452.8,1.1226951]
[1721661139113,2.89575,3453.4,3452.9,0.55]
[1721661139578,2.89575,3453.4,3452.8,4.1226951]
[1721661139579,0.03741697,3453.3,3452.6,7.31]
[1721661139918,2.89618,3452.9,3452.6,7.31]
[1721661140211,2.89598,3453.1,3452.4,2.89648]
[1721661140416,2.89582,3453.3,3452.5,2.89645]
[1721661140417,0.03741423,3452.8,3452.5,2.89645]
[1721661140626,2.89582,3453.3,3452.5,3.475743]
[1721661140782,0.03739004,3452.7,3452.5,3.475743]
[1721661141141,0.0235,3453.7,3452.5,3.475743]
[1721661141142,2.919,3453.7,3452.8,2.89612]
[1721661141428,2.919,3453.7,3452.6,0.55]
[1721661141429,0.0235,3453.7,3453.1,2.8959]
[1721661141915,2.91894,3453.7,3453.0,2.89595]
[1721661142114,0.0235,3453.7,3453.1,0.55]
[1721661142317,0.0235,3453.7,3453.2,2.89582]
[1721661142683,0.0235,3453.7,3453.1,0.55]
[1721661142883,2.91894,3453.7,3453.1,0.55]
[1721661143280,0.0235,3453.7,3453.1,3.44594]
[1721661143485,0.0235,3453.7,3453.2,2.8958]
[1721661143726,0.0235,3453.7,3453.1,1.2421173]
[1721661143727,2.91894,3453.7,3453.1,1.2421173]
[1721661143879,0.0235,3453.7,3453.3,2.89572]
[1721661144319,0.0235,3453.7,3453.1,3.44586]
[1721661144494,0.0235,3453.7,3453.1,0.55]
[1721661144700,0.0235,3453.7,3453.2,6.136198]
[1721661145007,0.0235,3453.7,3453.4,2.89563]
[1721661145382,0.0235,3453.7,3453.6,5.79104]
[1721661145608,0.0235,3453.7,3453.6,6.34104]
[1721661146022,0.0235,3453.7,3453.6,9.34104]
[1721661146341,0.0235,3453.7,3453.6,10.564711]
[1721661147444,0.0235,3453.7,3453.6,13.460231]
[1721661147609,2.4991,3455.1,3454.5,2.89477]
[1721661147808,2.4991,3455.1,3454.5,2.89471]
[1721661148034,0.03636145,3455.0,3454.6,2.89467]
[1721661148241,0.03636145,3455.0,3454.5,2.89471]
[1721661148436,0.03636145,3455.0,3454.5,3.184201]
[1721661148748,0.03636145,3455.0,3454.5,0.289471]
[1721661148950,2.89385,3455.6,3454.7,2.89452]
[1721661149146,2.4991,3455.7,3454.7,2.89452]
[1721661149147,2.4991,3455.7,3454.8,0.55]
[1721661149320,0.03629763,3455.6,3455.0,2.89435]
[1721661149944,0.03629763,3455.6,3455.1,2.89425]
[1721661150145,0.03629763,3455.6,3455.1,2.8942]
[1721661150348,0.03629763,3455.6,3454.8,0.55]
[1721661150349,0.03629763,3455.6,3455.0,2.89434]
[1721661150523,2.89406,3455.4,3454.8,0.55]
[1721661150727,2.89406,3455.4,3454.1,3.0]
[1721661150728,2.89419,3455.2,3454.5,2.89472]
[1721661151047,0.03626137,3455.1,3454.8,2.89449]
[1721661151208,0.03626137,3455.1,3454.8,5.78895]
[1721661151411,2.4991,3455.7,3454.8,2.89446]
[1721661151614,0.03625222,3455.0,3454.8,2.89446]
[1721661151854,2.89393,3455.5,3454.8,3.828371]
[1721661152154,2.89385,3455.6,3454.7,2.8946]
[1721661152316,0.03651834,3455.5,3454.9,2.89438]
[1721661153110,0.03651834,3455.5,3454.7,2.89453]
[1721661153238,2.89402,3455.4,3454.7,2.89453]
[1721661153600,0.03647776,3455.3,3454.7,2.89453]
[1721661153891,2.89432,3455.1,3454.6,3.0]
[1721661154088,2.89432,3455.1,3454.5,3.0]
[1721661154252,2.93083397,3455.0,3454.3,2.8949]
[1721661154443,0.03647397,3455.0,3454.4,3.55]
[1721661154839,2.89465,3454.7,3454.0,2.89512]
[1721661155045,0.03647397,3455.0,3454.3,2.89491]
[1721661155046,2.93084397,3455.0,3454.3,2.89491]
[1721661155267,2.93084397,3455.0,3453.7,2.89541]
[1721661155268,0.03639481,3454.6,3454.2,2.89498]
[1721661155466,2.8944,3455.0,3454.3,2.89493]
[1721661155777,2.8944,3455.0,3454.0,2.89515]
[1721661155778,2.89461,3454.7,3454.0,2.89515]
[1721661155981,2.89482,3454.5,3453.6,4.119151]
[1721661156138,2.92983188,3454.6,3453.9,2.89521]
[1721661156341,0.03505271,3454.4,3454.0,3.0]
[1721661156551,2.89474,3454.6,3454.0,3.0]
[1721661156784,0.03504356,3454.3,3454.0,3.0]
[1721661156985,2.89479,3454.5,3454.0,3.0]
[1721661157187,2.2602,3454.7,3453.8,3.0]
[1721661157188,0.03503441,3454.2,3453.8,3.0]
[1721661157401,2.2602,3454.7,3453.2,3.240448]
[1721661157402,0.804973,3454.5,3453.2,3.240448]
[1721661157607,2.93019052,3454.1,3453.2,3.240448]
[1721661157895,2.89495,3454.3,3453.6,2.89548]
[1721661158209,2.89512,3454.1,3453.4,2.89563]
[1721661158359,2.89512,3454.1,3453.5,0.6136038]
[1721661158559,0.03513114,3454.0,3453.5,0.6136038]
[1721661158753,2.8954,3453.8,3453.2,0.344598]
[1721661159067,0.03512199,3453.9,3453.4,5.7913]
[1721661159263,0.03496197,3453.7,3453.4,2.89562]
[1721661159614,0.804973,3454.5,3453.6,2.89552]
[1721661159615,2.89505,3454.2,3453.6,2.89552]
[1721661159900,2.89505,3454.2,3453.5,2.8956]
[1721661160057,2.89505,3454.2,3453.5,2.89556]
[1721661160058,0.03494631,3454.1,3453.5,2.89556]
[1721661160259,2.93005631,3454.1,3453.5,2.89556]
[1721661160524,0.03494631,3454.1,3453.7,2.89544]
[1721661160854,2.89487,3454.4,3453.7,2.89544]
[1721661161388,2.92992508,3454.3,3453.5,0.6135928]
[1721661161699,2.89504,3454.2,3453.5,2.89561]
[1721661161990,0.03495678,3454.1,3453.5,2.89561]
[1721661162556,0.03495678,3454.1,3453.5,2.89556]
[1721661162798,2.89473,3454.6,3453.2,0.40249922]
[1721661162985,2.2602,3454.7,3453.2,0.40249922]
[1721661162986,2.2602,3454.7,3454.2,2.89499]
[1721661163157,0.59209268,3455.3,3454.3,3.184429]
[1721661163158,2.89441,3455.0,3454.3,3.184429]
[1721661163491,2.89452,3454.8,3454.3,0.289499]
[1721661163694,2.89441,3455.0,3454.3,0.289499]
[1721661164507,2.89422,3455.2,3454.3,0.289499]
[1721661164692,2.89422,3455.2,3454.4,2.8948]
[1721661165002,5.78848,3455.2,3454.4,0.6079309]
[1721661165207,5.78848,3455.2,3453.8,0.05788982]
[1721661165381,2.8944,3455.0,3454.2,2.89494]
[1721661165582,2.2862,3455.3,3454.4,2.89483]
[1721661165786,5.18035,3455.3,3454.6,2.89463]
[1721661165973,2.2862,3455.3,3454.7,2.89456]
[1721661166171,2.2862,3455.3,3454.7,3.473479]
[1721661166409,5.18035,3455.3,3454.7,0.578919]
[1721661167085,2.2862,3455.3,3454.7,3.473499]
[1721661167285,2.89395,3455.5,3454.8,2.89447]
[1721661167487,2.89403,3455.4,3454.8,2.89447]
[1721661167710,2.89403,3455.4,3454.7,0.578919]
[1721661168072,2.8939,3455.6,3454.8,2.89446]
[1721661168369,5.38823,3455.8,3455.1,2.89419]
[1721661169012,5.38823,3455.8,3455.0,2.89434]
[1721661169172,2.4945,3455.8,3454.8,0.46676659]
[1721661169374,2.89385,3455.6,3454.8,3.36127659]
[1721661169584,2.89385,3455.6,3454.8,0.46676659]
[1721661169807,5.38823,3455.8,3455.1,2.89423]
[1721661170315,2.89381,3455.7,3455.0,2.89434]
[1721661170824,2.89386,3455.6,3455.0,2.89434]
[1721661170975,5.38823,3455.8,3455.1,2.89421]
[1721661171175,2.4945,3455.8,3455.2,2.89417]
[1721661171608,2.4945,3455.8,3455.1,2.89426]
[1721661171876,5.38824,3455.8,3455.2,2.89418]
[1721661172104,2.89377,3455.7,3455.1,2.89425]
[1721661172612,2.89377,3455.7,3455.0,0.38672356]
[1721661172836,2.89398,3455.5,3454.8,2.89452]
[1721661173131,2.8938,3455.7,3455.0,2.89431]
[1721661173327,2.4945,3455.8,3455.1,2.89426]
[1721661173487,5.38819,3455.8,3455.2,2.89418]
[1721661173688,2.89378,3455.7,3455.0,2.89428]
[1721661173937,2.89378,3455.7,3455.0,3.5310469]
[1721661174430,2.4945,3455.8,3455.1,2.89421]
[1721661174583,2.4945,3455.8,3455.2,2.89417]
[1721661175314,2.4945,3455.8,3455.0,3.5310469]
[1721661175315,2.4945,3455.8,3455.3,2.89408]
[1721661175949,0.03294981,3455.7,3455.3,2.89408]
[1721661176098,3.0427696,3455.9,3455.3,2.89408]
[1721661176446,0.03295896,3455.8,3455.3,2.89408]
[1721661176647,0.03295896,3455.8,3455.1,2.89426]
[1721661177129,2.89395,3455.5,3454.7,0.578919]
[1721661177335,0.34053182,3455.8,3454.9,2.89443]
[1721661177336,2.89392,3455.6,3454.9,2.89443]
[1721661177534,2.89382,3455.7,3454.7,3.473509]
[1721661177535,2.89408,3455.4,3454.7,3.473519]
[1721661177709,0.03295574,3455.3,3454.8,3.0]
[1721661178209,2.89422,3455.2,3454.8,3.0]
[1721661178538,0.03293745,3455.1,3454.6,3.0]
[1721661178743,2.89422,3455.2,3454.6,4.609966]
[1721661179145,0.03296109,3455.1,3454.7,2.8946]
[1721661179362,2.89407,3455.4,3454.7,2.8946]
[1721661179547,0.03295574,3455.3,3454.7,2.89455]
[1721661180349,5.82126574,3455.3,3454.6,7.504636]
[1721661180519,5.82126574,3455.3,3454.5,7.31]
[1721661180520,2.8944,3455.0,3454.5,7.31]
[1721661180762,2.89453,3454.8,3454.5,7.31]
[1721661180961,2.89453,3454.8,3454.1,2.8951]
[1721661181283,5.18586,3455.3,3454.6,2.89468]
[1721661181466,2.2917,3455.3,3454.7,2.8946]
[1721661181789,2.92714659,3455.2,3454.5,2.89471]
[1721661182098,0.03294659,3455.2,3454.7,2.89455]
[1721661182573,0.03294659,3455.2,3454.6,2.89463]
[1721661182772,2.92713659,3455.2,3454.5,0.578951]
[1721661182978,2.89437,3455.0,3454.2,2.89495]
[1721661183178,2.92713659,3455.2,3454.6,2.89468]
[1721661183179,0.03291915,3454.9,3454.6,2.89468]
[1721661183351,2.89405,3455.4,3454.6,2.89463]
[1721661183557,2.89405,3455.4,3454.8,2.89451]
[1721661183558,0.0329589,3455.3,3454.8,2.89451]
[1721661183776,0.0329589,3455.3,3454.7,2.8946]
[1721661184394,0.0329589,3455.3,3454.8,2.89449]
[1721661184554,2.89398,3455.5,3454.8,2.89449]
[1721661184757,0.03294975,3455.2,3454.8,2.89449]
[1721661185081,2.89394,3455.5,3454.8,2.89452]
[1721661185391,2.89394,3455.5,3454.7,2.89452]
[1721661185565,2.89403,3455.4,3454.7,0.289452]
[1721661185761,2.8941,3455.3,3454.7,3.184012]
[1721661185966,0.03294975,3455.2,3454.7,3.184012]
[1721661186289,0.03294975,3455.2,3454.7,0.289452]
[1721661187082,2.89398,3455.5,3454.7,3.184052]
[1721661187083,2.89411,3455.3,3454.7,3.184052]
[1721661187303,0.03294061,3455.1,3454.8,2.8945]
[1721661187454,2.89398,3455.5,3454.8,0.3183952]
[1721661187455,0.03294975,3455.2,3454.8,0.3183952]
[1721661187658,0.03290781,3455.0,3454.8,2.89447]
[1721661187876,2.89398,3455.5,3454.8,2.89446]
[1721661188167,6.37974268,3455.7,3454.8,2.89447]
[1721661188487,2.92675369,3455.6,3454.9,2.89442]
[1721661189164,2.89394,3455.5,3454.9,2.89442]
[1721661189368,0.03287013,3455.4,3455.0,2.89435]
[1721661189564,2.89385,3455.6,3455.0,2.89435]
[1721661189880,0.03287928,3455.5,3455.0,3.473236]
[1721661190109,0.03287928,3455.5,3455.0,2.89435]
[1721661190290,2.2917,3455.8,3454.4,3.0]
[1721661190597,0.1490996,3455.9,3455.5,2.89388]
[1721661190832,0.1490996,3455.9,3455.4,2.89401]
[1721661190833,0.03288989,3455.8,3455.4,2.89401]
[1721661190996,0.03288989,3455.8,3455.1,2.89425]
[1721661191200,2.89382,3455.7,3454.9,2.89437]
[1721661191527,2.89402,3455.4,3454.4,3.0]
[1721661191728,2.89402,3455.4,3454.7,2.89455]
[1721661191929,0.03063158,3455.3,3454.5,2.89472]
[1721661192089,0.03063158,3455.3,3454.7,2.89459]
[1721661192284,2.89415,3455.3,3454.6,2.89468]
[1721661192608,2.92490026,3455.2,3454.6,2.89468]
[1721661192808,2.92490026,3455.2,3454.2,3.0]
[1721661192809,0.03066026,3455.2,3454.3,2.89487]
[1721661193015,2.89427,3455.1,3454.4,6.44485]
[1721661193222,2.92485026,3455.2,3454.5,2.89472]
[1721661193428,2.92485026,3455.2,3454.6,2.89465]
[1721661193429,2.92489026,3455.2,3454.6,2.89465]
[1721661193583,2.89423,3455.2,3454.6,2.89465]
[1721661193883,2.89423,3455.2,3454.4,3.55]
[1721661193884,0.0296293,3455.1,3454.4,3.55]
[1721661194084,0.0296293,3455.1,3454.5,2.89469]
[1721661194497,0.0296293,3455.1,3454.4,0.9639487]
[1721661194724,2.89419,3455.2,3454.6,2.89466]
[1721661194896,0.02960124,3455.0,3454.4,0.9639487]
[1721661195101,2.8944,3455.0,3454.3,2.89489]
[1721661195300,2.8944,3455.0,3453.7,4.40536172]
[1721661195301,2.89429,3455.1,3453.9,2.89522]
[1721661195501,2.8949,3454.4,3453.7,2.89538]
[1721661195748,2.8949,3454.4,3453.6,2.89552]
[1721661195749,2.89495,3454.3,3453.6,2.89552]
[1721661195945,2.92447772,3454.3,3453.6,2.89552]
[1721661196251,2.92447772,3454.3,3453.6,3.474587]
[1721661196550,2.92447772,3454.3,3453.7,2.89544]
[1721661197048,0.02952772,3454.3,3453.6,3.474587]
[1721661197250,0.02952772,3454.3,3453.6,2.89547]
[1721661197448,2.89496,3454.3,3453.7,2.89543]
[1721661197749,0.02955168,3454.2,3453.8,2.89536]
[1721661198052,8.2373,3454.6,3453.8,2.89531]
[1721661198345,0.02947706,3454.1,3453.8,2.89531]
[1721661198547,5.34255,3454.6,3454.0,2.89518]
[1721661198733,2.4478,3454.6,3453.9,2.89527]
[1721661198935,2.89487,3454.4,3453.7,2.89543]
[1721661199136,2.89487,3454.4,3453.5,2.89557]
[1721661199137,2.4478,3454.6,3453.5,2.89556]
[1721661199352,2.89543,3453.8,3453.1,10.20591]
[1721661199516,5.79049,3454.0,3453.2,2.89584]
[1721661199714,5.79049,3454.0,3453.3,2.89577]
[1721661199947,2.89528,3453.9,3453.3,2.89577]
[1721661200127,2.89528,3453.9,3453.1,11.97338242]
[1721661200452,2.89528,3453.9,3453.1,4.66337242]
[1721661200641,2.89541,3453.8,3453.1,2.89587]
[1721661200969,2.89554,3453.6,3452.9,2.89604]
[1721661201120,2.89554,3453.6,3452.7,2.89627]
[1721661201121,2.89545,3453.7,3452.7,2.89621]
[1721661201322,2.89545,3453.7,3452.3,8.82057583]
[1721661201323,2.89591,3453.2,3452.5,2.89644]
[1721661201537,2.89591,3453.2,3452.3,7.31]
[1721661201538,2.89594,3453.1,3452.3,2.89654]
[1721661201767,2.8962,3452.8,3452.3,0.579319]
[1721661201988,2.89572,3453.4,3451.8,7.31]
[1721661201989,0.59209268,3453.4,3451.8,7.31]
[1721661202267,2.89655,3452.4,3451.8,7.31]
[1721661202463,2.89633,3452.7,3451.9,2.89693]
[1721661203243,2.89655,3452.4,3451.8,7.31]
[1721661203421,2.89655,3452.4,3451.8,8.620438]
[1721661203924,2.89597,3453.1,3451.8,11.517468]
[1721661204670,2.89658,3452.4,3451.8,1.310438]
[1721661204874,2.89666,3452.3,3451.6,2.89714]
[1721661205027,2.89666,3452.3,3451.7,3.55]
[1721661206025,0.02947029,3452.2,3451.7,3.55]
[1721661206339,2.89562,3453.5,3452.7,2.89623]
[1721661206521,2.4685,3453.8,3452.8,0.289623]
[1721661206724,0.02855126,3453.4,3453.3,2.89571]
[1721661206960,2.89515,3454.1,3453.3,2.89571]
[1721661207180,0.02655933,3453.4,3453.3,2.89571]
[1721661207473,2.89484,3454.5,3453.5,2.89558]
[1721661207635,2.89477,3454.5,3453.8,2.8953]
[1721661207818,2.89463,3454.7,3453.8,0.579069]
[1721661208020,2.89463,3454.7,3454.0,2.89517]
[1721661208269,2.89469,3454.6,3453.8,2.89529]
[1721661208618,5.38374,3454.8,3454.0,2.89519]
[1721661208838,2.89434,3455.1,3454.2,2.89502]
[1721661209062,2.4892,3455.3,3454.0,2.89516]
[1721661209063,2.89441,3455.0,3454.0,2.89516]
[1721661209247,2.89441,3455.0,3454.3,2.89492]
[1721661209459,2.89458,3454.8,3454.1,0.589516]
[1721661209770,2.8946,3454.7,3454.1,0.589516]
[1721661209974,2.89452,3454.8,3454.1,0.589516]
[1721661210118,2.89454,3454.8,3454.1,3.589516]
[1721661210319,2.89454,3454.8,3454.2,0.6484646]
[1721661210619,2.8944,3455.0,3454.2,3.5434846]
[1721661210820,2.89444,3454.9,3454.2,3.5434846]
[1721661211023,2.89452,3454.8,3454.2,0.6484646]
[1721661211221,2.89428,3455.1,3454.2,0.6484646]
[1721661211464,2.89429,3455.1,3454.3,0.71330806]
[1721661211678,2.4892,3455.3,3454.3,0.71330806]
[1721661211679,2.89475,3454.6,3454.3,0.71330806]
[1721661211856,2.89474,3454.6,3454.3,0.71330806]
[1721661212062,2.89474,3454.6,3453.8,5.89535]
[1721661212361,2.89487,3454.4,3453.4,2.89569]
[1721661212567,5.272,3455.1,3452.7,7.31]
[1721661212568,2.2625,3454.2,3452.7,7.31]
[1721661212873,2.2625,3454.2,3452.3,4.6676]
[1721661212874,2.89519,3454.0,3453.2,2.89585]
[1721661213155,2.89527,3453.9,3453.0,2.89598]
[1721661213369,2.89527,3453.9,3453.1,2.89589]
[1721661213684,2.89512,3454.1,3453.1,2.89589]
[1721661213839,2.89512,3454.1,3452.3,4.6676]
[1721661213840,2.89512,3454.1,3453.4,2.89568]
[1721661214174,2.89512,3454.1,3453.3,2.89571]
[1721661214175,2.2625,3454.2,3453.3,2.89569]
[1721661214478,2.89487,3454.4,3453.4,2.89566]
[1721661214640,5.22038,3454.7,3453.9,2.8952]
[1721661214845,5.22038,3454.7,3453.8,2.89536]
[1721661215050,2.89478,3454.5,3453.8,2.89536]
[1721661216070,6.042418,3454.7,3453.9,2.89526]
[1721661216280,6.042418,3454.7,3454.0,2.89512]
[1721661216572,6.042408,3454.7,3454.0,2.89512]
[1721661216772,3.147738,3454.7,3454.0,2.89512]
[1721661217109,3.147738,3454.7,3453.5,3.44557]
[1721661217269,2.89446,3454.9,3454.1,2.89504]
[1721661217661,2.313,3455.2,3453.7,2.8954]
[1721661217893,2.89469,3454.6,3453.9,2.89527]
[1721661218073,2.89461,3454.7,3454.0,2.89517]
[1721661218463,2.89461,3454.7,3454.1,2.8951]
[1721661218975,2.89448,3454.9,3454.1,3.474077]
[1721661219171,2.89458,3454.8,3454.1,3.474077]
[1721661219503,2.89453,3454.8,3454.1,0.579037]
[1721661219806,2.89441,3455.0,3454.3,2.89489]
[1721661220010,2.89441,3455.0,3454.3,5.78978]
[1721661220306,2.89441,3455.0,3454.3,5.78976]
[1721661220505,2.313,3455.2,3454.4,0.05789453]
[1721661220815,6.48579268,3455.8,3454.7,2.89459]
[1721661220816,2.89407,3455.4,3454.7,2.89459]
[1721661221031,0.02637372,3455.3,3454.7,2.89455]
[1721661221246,0.02637372,3455.3,3454.8,2.89447]
[1721661221451,2.89396,3455.5,3454.9,2.89443]
[1721661221452,0.0254883,3455.2,3454.9,2.89443]
[1721661221933,2.89378,3455.7,3454.9,2.89443]
[1721661222127,0.02547916,3455.1,3454.9,2.89443]
[1721661222322,2.89378,3455.7,3454.9,3.183813]
[1721661222502,0.02547001,3455.0,3454.9,2.89437]
[1721661222709,2.3381,3455.8,3454.5,2.89476]
[1721661222912,0.02547001,3455.0,3454.6,3.0]
[1721661223096,2.89424,3455.2,3454.1,10.20506]
[1721661223311,2.89424,3455.2,3453.5,3.0164]
[1721661223312,2.89426,3455.2,3454.5,2.89475]
[1721661223520,2.3381,3455.8,3454.6,2.89461]
[1721661223521,0.02549333,3455.1,3454.6,2.89461]
[1721661223692,0.02549333,3455.1,3454.9,2.89437]
[1721661223892,5.23183,3455.8,3454.8,2.89444]
[1721661223893,5.23184,3455.8,3454.8,2.89444]
[1721661224089,5.23184,3455.8,3454.9,2.89441]
[1721661224090,0.02545819,3455.0,3454.9,2.89441]
[1721661224296,2.89382,3455.7,3454.5,0.644475]
[1721661224534,2.89407,3455.4,3454.6,2.89464]
[1721661224704,2.89415,3455.3,3454.6,2.89464]
[1721661224901,2.89419,3455.2,3454.6,2.89463]
[1721661225195,5.78832,3455.3,3454.5,5.89476]
[1721661225415,2.89424,3455.2,3454.5,5.89476]
[1721661225619,2.89439,3455.0,3454.5,3.0]
[1721661225819,2.89439,3455.0,3453.7,12.44]
[1721661225820,2.8944,3455.0,3454.3,2.89489]
[1721661226026,2.8944,3455.0,3454.4,5.89485]
[1721661226231,2.89393,3455.5,3454.7,2.89459]
[1721661226434,2.89384,3455.7,3454.9,2.89438]
[1721661226638,0.59731323,3455.7,3454.7,2.89455]
[1721661226854,2.3381,3455.8,3454.9,2.89442]
[1721661227144,2.3381,3455.8,3454.4,3.0]
[1721661227344,5.23179,3455.8,3455.0,2.89435]
[1721661227548,5.23182,3455.8,3454.4,5.19393]
[1721661227712,2.89387,3455.6,3454.9,2.89438]
[1721661228042,2.89387,3455.6,3454.9,5.78877]
[1721661228203,2.89387,3455.6,3454.9,2.89438]
[1721661228432,2.89387,3455.6,3454.7,2.89455]
[1721661228433,2.89406,3455.4,3454.7,2.89454]
[1721661228640,2.89419,3455.2,3454.5,2.89472]
[1721661228932,2.89406,3455.4,3454.5,2.89472]
[1721661229178,2.89414,3455.3,3454.5,5.78942]
[1721661229479,2.89414,3455.3,3454.3,3.0]
[1721661229480,2.89406,3455.4,3454.7,2.89453]
[1721661229847,2.89412,3455.3,3454.7,2.89453]
[1721661230076,2.89397,3455.5,3454.7,2.89455]
[1721661230276,2.8939,3455.6,3454.9,2.89443]
[1721661230452,2.89399,3455.5,3454.9,2.89443]
[1721661230979,2.8939,3455.6,3454.9,5.78881]
[1721661231139,2.8939,3455.6,3454.9,2.89438]
[1721661231835,2.89377,3455.7,3455.1,2.89422]
[1721661232042,2.3381,3455.8,3454.8,2.89448]
[1721661232240,2.89378,3455.7,3455.0,2.89431]
[1721661232493,2.89386,3455.6,3455.0,2.89431]
[1721661232984,2.89386,3455.6,3454.7,0.289455]
[1721661233143,2.89395,3455.5,3454.9,2.89443]
[1721661233497,2.89395,3455.5,3454.7,0.289455]
[1721661233498,2.89395,3455.5,3454.8,2.89451]
[1721661233789,2.89395,3455.5,3454.8,5.78895]
[1721661234083,2.89395,3455.5,3454.6,2.89464]
[1721661234291,2.89386,3455.6,3455.0,2.89435]
[1721661234451,2.8938,3455.7,3454.6,0.878956]
[1721661234659,2.3381,3455.8,3454.6,0.878956]
[1721661234660,2.8939,3455.6,3455.0,2.89434]
[1721661234866,5.76989696,3455.8,3455.1,2.89425]
[1721661235055,2.3381,3455.8,3455.0,2.89429]
[1721661235259,2.3381,3455.8,3455.2,2.89413]
[1721661235506,5.23179,3455.8,3455.1,2.89426]
[1721661235781,3.16555396,3455.8,3454.8,2.89446]
[1721661235951,5.78766,3455.7,3455.0,2.89435]
[1721661236169,2.89389,3455.6,3455.0,2.89435]
[1721661236554,2.3381,3455.8,3455.1,2.89426]
[1721661236757,2.89378,3455.7,3455.1,2.89426]
[1721661238003,2.3381,3455.8,3455.2,2.89411]
[1721661238303,2.87618396,3455.8,3455.1,2.89424]
[1721661238704,2.87618396,3455.8,3455.1,2.89427]
[1721661238908,5.23179,3455.8,3455.2,2.89415]
[1721661239270,2.89381,3455.7,3455.0,2.89434]
[1721661239599,2.89381,3455.7,3455.1,2.89424]
[1721661239962,2.3381,3455.8,3455.2,2.89417]
[1721661240163,5.23178,3455.8,3455.2,2.89412]
[1721661240466,6.05922796,3455.8,3455.1,2.89427]
[1721661240681,2.89377,3455.7,3455.1,2.89427]
[1721661241283,2.89386,3455.6,3455.0,2.89434]
[1721661241489,2.89377,3455.7,3455.0,2.89431]
[1721661241809,2.89377,3455.7,3455.0,2.89434]
[1721661241810,2.89385,3455.6,3455.0,2.89434]
[1721661242011,2.89385,3455.6,3455.0,2.89431]
[1721661242174,3.80398176,3455.7,3455.0,2.89428]
[1721661242378,0.1490996,3455.9,3455.4,2.89401]
[1721661243479,3.0427396,3455.9,3455.3,2.89409]
[1721661243679,0.1490996,3455.9,3455.4,2.89397]
[1721661243984,0.1490996,3455.9,3455.5,2.89392]
[1721661244190,0.1490996,3455.9,3455.2,2.89413]
[1721661244517,0.1490996,3455.9,3455.4,2.89396]
[1721661244669,0.1490996,3455.9,3455.5,2.89389]
[1721661245237,0.1490996,3455.9,3455.6,2.89378]
[1721661245374,0.1490996,3455.9,3455.7,2.89376]
[1721661245574,0.1490996,3455.9,3455.5,2.89393]
[1721661245769,0.1490996,3455.9,3455.4,2.89396]
[1721661245974,0.1490996,3455.9,3455.5,2.89387]
[1721661246174,0.1490996,3455.9,3455.6,2.89384]
[1721661246779,0.1490996,3455.9,3455.5,2.89393]
[1721661246978,0.1490996,3455.9,3455.6,2.89383]
[1721661247329,0.1490996,3455.9,3455.6,5.78762]
[1721661247540,0.1490996,3455.9,3455.7,2.95163279]